bitfinex/quotes_ETHUSD_20250702
["timestamp","ask_amount","ask_price","bid_price","bid_amount"]
[1751489980152,0.212,2596.8,2596.5,0.01]
[1751489980471,0.7675,2596.7,2596.5,0.01]
[1751489980643,11.89419001,2596.6,2596.5,0.01]
[1751489980962,21.06024487,2596.6,2596.5,0.01]
[1751489981327,21.82884487,2596.6,2596.5,0.01]
[1751489981531,23.75284487,2596.6,2596.5,0.01]
[1751489981763,26.51523438,2596.6,2596.5,0.01]
[1751489983772,26.51345574,2596.6,2596.5,0.01]
[1751489984750,37.06345574,2596.6,2596.5,0.01]
[1751489984959,4.66303174,2596.1,2595.9,0.2172112]
[1751489985154,20.75722955,2596.1,2595.9,0.2172112]
[1751489985367,23.21813317,2596.1,2595.9,0.2172112]
[1751489985554,34.68834382,2596.1,2596.0,1e-08]
[1751489985755,34.68834382,2596.1,2595.9,1e-08]
[1751489985756,15.40518012,2596.0,2595.9,1e-08]
[1751489985965,23.20395857,2596.0,2595.9,1e-08]
[1751489986164,14.40267375,2595.6,2595.5,0.01]
[1751489986366,24.43977375,2595.6,2595.5,0.01]
[1751489986678,29.01182402,2595.6,2595.5,0.01]
[1751489986878,19.23582402,2595.6,2595.5,0.01]
[1751489987097,37.26902183,2595.6,2595.5,0.01]
[1751489987469,36.35052327,2595.6,2595.5,0.01]
[1751489988771,37.26723711,2595.6,2595.5,0.01]
[1751489989400,37.26723711,2595.6,2594.2,0.7717]
[1751489989401,3.85380563,2594.9,2594.2,0.7717]
[1751489989564,9.826,2594.8,2594.2,0.7717]
[1751489990049,13.67986661,2594.8,2594.2,0.7717]
[1751489990249,9.826,2594.8,2594.2,0.7717]
[1751489990471,13.67993378,2594.8,2594.2,0.7717]
[1751489990670,14.61047678,2595.2,2594.2,0.7717]
[1751489990881,1.932,2594.8,2594.3,0.48765587]
[1751489991085,7.895,2594.7,2594.3,0.48765587]
[1751489991464,7.895,2594.7,2594.2,0.7717]
[1751489993492,3.85426221,2594.6,2594.2,0.7717]
[1751489993669,3.85426221,2594.6,2594.3,0.01]
[1751489994196,7.895,2594.7,2594.3,0.01]
[1751489994396,3.85425353,2594.6,2594.3,0.01]
[1751489995500,11.74907181,2594.7,2594.3,0.01]
[1751489995673,7.891,2594.5,2594.3,0.01]
[1751489996500,11.74542861,2594.5,2594.3,0.01]
[1751489996681,11.74537139,2594.5,2594.3,0.01]
[1751489996994,7.891,2594.5,2594.3,0.01]
[1751489997198,11.74530963,2594.5,2594.3,0.01]
[1751489997766,3.85445575,2594.4,2594.3,0.01]
[1751489998170,11.74538122,2594.5,2594.3,0.01]
[1751489998583,3.85445575,2594.4,2594.3,0.01]
[1751489998805,7.891,2594.5,2594.3,0.01]
[1751489999298,11.93731967,2594.5,2594.3,0.01]
[1751489999500,0.192,2594.5,2594.3,0.01]
[1751489999818,9.819,2594.4,2594.3,0.01]
[1751490000020,13.67345575,2594.4,2594.3,0.01]
[1751490000514,9.819,2594.4,2594.3,0.01]
[1751490000717,0.192,2594.5,2594.3,0.01]
[1751490000902,1.933,2594.6,2594.4,0.7838]
[1751490001108,0.192,2594.7,2594.4,0.7838]
[1751490001303,7.885,2594.7,2594.4,0.7838]
[1751490001515,7.885,2594.7,2594.4,0.9758]
[1751490001718,1.933,2594.8,2594.4,0.9758]
[1751490002022,7.885,2594.7,2594.4,0.9758]
[1751490002721,2.125,2594.9,2594.4,0.9758]
[1751490002896,9.259,2595.4,2594.7,10.0]
[1751490003215,0.192,2595.2,2594.8,1.9574]
[1751490003388,0.192,2595.2,2594.8,0.9574]
[1751490003589,0.192,2595.2,2594.8,4.04586016]
[1751490003783,11.192,2595.4,2595.0,0.192]
[1751490004218,11.192,2595.4,2595.1,0.8259]
[1751490005824,11.192,2595.4,2594.6,3.85411279]
[1751490005825,4.65486,2595.0,2594.3,0.01]
[1751490006123,11.8478354,2594.9,2594.4,0.804]
[1751490006329,7.994,2594.9,2594.4,0.804]
[1751490006484,3.85378338,2594.9,2594.4,0.804]
[1751490006690,7.997,2594.8,2594.4,0.804]
[1751490006996,7.996,2594.7,2594.4,0.804]
[1751490007313,3.85371764,2594.9,2594.4,0.804]
[1751490007516,7.995,2594.8,2594.4,0.804]
[1751490007719,7.995,2594.7,2594.4,0.804]
[1751490007891,3.85346997,2595.1,2594.4,0.804]
[1751490008088,11.84757696,2595.0,2594.4,0.804]
[1751490008314,3.85386933,2594.8,2594.4,0.804]
[1751490008513,0.02,2595.3,2594.4,0.804]
[1751490008918,3.85344624,2595.1,2594.4,0.804]
[1751490009123,11.84538113,2595.2,2594.4,0.804]
[1751490009297,3.85346227,2595.1,2594.4,0.804]
[1751490009502,7.992,2595.2,2594.4,0.804]
[1751490009503,3.85358683,2595.0,2594.4,0.804]
[1751490009806,7.992,2594.9,2594.4,0.804]
[1751490010292,0.02,2595.3,2594.4,0.804]
[1751490010497,7.989,2595.2,2594.5,0.7522]
[1751490010702,7.989,2595.2,2594.7,0.7522]
[1751490010909,11.84227862,2595.2,2594.7,0.7522]
[1751490012716,7.989,2595.2,2594.7,0.7522]
[1751490012917,7.984,2595.1,2594.7,0.7522]
[1751490013710,7.984,2595.2,2594.7,0.7522]
[1751490014023,7.984,2595.2,2594.4,13.86442966]
[1751490014024,7.984,2595.2,2594.9,0.8202]
[1751490014194,0.02,2595.3,2594.9,0.8202]
[1751490014394,8.002,2595.3,2594.9,0.8202]
[1751490015530,8.0,2595.3,2594.9,0.8202]
[1751490015730,8.192,2595.3,2594.9,1.0122]
[1751490015929,0.02,2595.3,2594.9,0.8202]
[1751490016115,0.02,2595.3,2595.2,0.7974]
[1751490019838,0.02,2595.3,2595.2,15.5174]
[1751490020138,0.02,2595.3,2595.2,15.50505]
[1751490022040,0.02,2595.3,2595.2,14.912]
[1751490022333,0.02,2595.3,2595.2,16.38704471]
[1751490023209,0.02,2595.3,2595.2,17.17224471]
[1751490026339,0.02,2595.3,2595.2,21.57551228]
[1751490029265,0.02,2595.3,2595.2,17.72224471]
[1751490029751,0.02,2595.3,2595.2,21.57551228]
[1751490030262,0.02,2595.3,2595.2,17.72224471]
[1751490031961,0.02,2595.3,2595.2,29.89682746]
[1751490032459,0.02,2595.3,2595.2,21.57551228]
[1751490038577,0.02,2595.3,2595.2,17.72224471]
[1751490038767,0.02,2595.3,2595.2,21.57551228]
[1751490040773,0.02,2595.3,2595.2,17.72224471]
[1751490040977,0.7873,2595.3,2595.2,4.912]
[1751490041275,0.7873,2595.3,2595.2,10.0]
[1751490043768,0.7873,2595.3,2595.1,0.202]
[1751490048382,0.9793,2595.3,2595.1,0.01]
[1751490050083,4.83241993,2595.3,2595.1,0.01]
[1751490050445,3.85326757,2595.2,2595.1,0.01]
[1751490050676,0.9793,2595.3,2595.1,0.01]
[1751490050884,4.83244736,2595.3,2595.1,0.01]
[1751490051088,0.9793,2595.3,2595.1,0.01]
[1751490051281,4.83245548,2595.3,2595.1,0.01]
[1751490051490,0.9793,2595.3,2595.1,0.01]
[1751490052087,4.83243037,2595.3,2595.1,0.01]
[1751490052681,0.9793,2595.3,2595.1,0.01]
[1751490052853,4.83246755,2595.3,2595.1,0.01]
[1751490053966,0.9793,2595.3,2595.1,0.01]
[1751490058072,0.212,2595.3,2595.1,0.01]
[1751490059502,0.7732,2595.2,2595.1,0.01]
[1751490059802,0.212,2595.3,2595.1,0.01]
[1751490070718,8.102,2595.3,2595.1,0.01]
[1751490074016,7.886,2595.2,2595.1,0.01]
[1751490080241,7.906,2595.2,2595.1,0.01]
[1751490085546,7.893,2595.2,2595.1,0.01]
[1751490098757,13.8330733,2595.2,2595.1,0.01]
[1751490099056,23.07514156,2595.2,2595.1,0.01]
[1751490099431,14.66581605,2595.1,2595.0,0.01]
[1751490099640,15.58656913,2595.1,2595.0,1e-08]
[1751490099837,19.59989337,2595.1,2595.0,1e-08]
[1751490102141,49.59989337,2595.1,2595.0,1e-08]
[1751490104036,19.59989337,2595.1,2595.0,1e-08]
[1751490104263,29.40789337,2595.1,2595.0,1e-08]
[1751490104463,59.40789337,2595.1,2595.0,1e-08]
[1751490107563,3.85475291,2594.2,2594.1,0.25]
[1751490107734,14.47325291,2594.2,2594.1,0.25]
[1751490107932,3.85475291,2594.2,2594.1,0.25]
[1751490108144,13.66775291,2594.2,2594.1,0.25]
[1751490108342,3.85475291,2594.2,2594.1,0.25]
[1751490108552,3.85467166,2594.3,2594.1,0.25]
[1751490108747,8.07,2594.2,2594.1,1.0775]
[1751490109837,8.076,2594.2,2594.1,1.0775]
[1751490110448,11.93075291,2594.2,2594.1,1.0775]
[1751490110977,11.93075291,2594.2,2594.1,0.25]
[1751490111774,8.076,2594.2,2594.1,0.25]
[1751490114170,8.069,2594.2,2594.1,0.25]
[1751490114577,0.192,2594.2,2594.1,1.0246]
[1751490114747,0.192,2594.5,2594.2,0.7746]
[1751490115077,7.876,2594.4,2594.2,0.7746]
[1751490116445,7.877,2594.3,2594.2,0.7746]
[1751490117178,0.192,2594.5,2594.2,0.7746]
[1751490117380,7.876,2594.4,2594.2,0.7746]
[1751490119290,4.63044283,2595.1,2594.2,0.7746]
[1751490119449,0.02,2595.2,2594.4,0.7926]
[1751490119649,0.192,2595.0,2594.6,0.7926]
[1751490119860,0.192,2595.0,2594.6,10.7926]
[1751490120063,0.192,2595.0,2594.7,1.45460471]
[1751490120263,0.02,2595.2,2595.1,10.0]
[1751490120478,0.02,2595.2,2595.0,4.6460524]
[1751490120479,0.02,2595.2,2595.0,0.7926]
[1751490120695,0.02,2595.2,2595.1,10.0]
[1751490121183,0.02,2595.2,2595.1,14.04541605]
[1751490121389,0.02,2595.2,2595.1,11.29446]
[1751490128649,0.02,2595.2,2595.0,0.01]
[1751490128954,0.192,2595.1,2595.0,0.01]
[1751490131560,4.04541605,2595.1,2595.0,0.01]
[1751490131965,0.192,2595.1,2595.0,0.01]
[1751490132907,7.893,2595.2,2595.0,0.01]
[1751490138866,0.02,2595.2,2595.0,0.01]
[1751490139063,7.893,2595.2,2595.0,0.01]
[1751490143512,7.872,2595.1,2595.0,0.01]
[1751490145335,0.02,2595.2,2595.0,0.01]
[1751490145482,7.872,2595.1,2595.0,0.01]
[1751490154031,11.72541605,2595.1,2595.0,0.01]
[1751490154201,13.6697454,2595.1,2595.0,0.01]
[1751490154904,14.59037289,2595.1,2595.0,0.01]
[1751490155913,24.59037289,2595.1,2595.0,0.01]
[1751490156331,32.91168807,2595.1,2595.0,0.01]
[1751490158035,32.91168807,2595.1,2595.0,1e-08]
[1751490158397,33.46168807,2595.1,2595.0,1e-08]
[1751490161714,35.39468807,2595.1,2595.0,1e-08]
[1751490162350,35.41468807,2595.1,2595.0,1e-08]
[1751490164661,25.05968807,2595.1,2595.0,1e-08]
[1751490164839,34.86568807,2595.1,2595.0,1e-08]
[1751490169255,25.05968807,2595.1,2595.0,1e-08]
[1751490169421,34.86568807,2595.1,2595.0,1e-08]
[1751490171351,35.41568807,2595.1,2595.0,1e-08]
[1751490178580,25.60968807,2595.1,2595.0,1e-08]
[1751490178765,35.41468807,2595.1,2595.0,1e-08]
[1751490180661,25.60968807,2595.1,2595.0,1e-08]
[1751490180867,65.41368807,2595.1,2595.0,1e-08]
[1751490181760,3.85475291,2594.2,2594.1,0.25]
[1751490181963,13.65875291,2594.2,2594.1,0.25]
[1751490182164,14.40895291,2594.2,2594.1,0.25]
[1751490182849,24.40895291,2594.2,2594.1,0.25]
[1751490183176,25.33015207,2594.2,2594.1,0.25]
[1751490183372,29.0807621,2594.2,2594.1,0.25]
[1751490190650,29.0944621,2594.2,2594.1,0.25]
[1751490195382,29.0954621,2594.2,2594.1,0.25]
[1751490196884,0.92119916,2594.2,2594.1,0.25]
[1751490197084,1.933,2594.2,2594.1,1.021]
[1751490197387,9.997,2594.2,2594.1,1.021]
[1751490197785,2.125,2594.2,2594.1,1.021]
[1751490197972,0.192,2594.2,2594.1,1.021]
[1751490198176,7.872,2594.2,2594.1,1.021]
[1751490198663,9.805,2594.2,2594.1,1.021]
[1751490210401,9.805,2594.2,2594.1,1.5971]
[1751490210790,0.192,2594.3,2594.1,1.5971]
[1751490210994,9.8,2594.2,2594.1,1.5971]
[1751490213303,0.192,2594.3,2594.1,1.5971]
[1751490213603,9.799,2594.2,2594.1,1.5971]
[1751490215503,0.192,2594.3,2594.1,1.5971]
[1751490215707,9.798,2594.2,2594.1,1.5971]
[1751490216103,1.93,2594.2,2594.1,1.5971]
[1751490216309,0.192,2594.3,2594.1,1.5971]
[1751490216310,0.192,2594.3,2594.1,0.8261]
[1751490216607,1.93,2594.5,2594.3,0.8202]
[1751490216801,7.868,2594.4,2594.3,0.8202]
[1751490219909,7.867,2594.4,2594.3,0.8202]
[1751490224514,0.192,2594.6,2594.3,0.8202]
[1751490224698,7.866,2594.5,2594.3,0.8202]
[1751490224904,7.866,2594.5,2594.4,0.609581]
[1751490231109,0.192,2594.7,2594.4,1.366481]
[1751490231318,7.864,2594.5,2594.4,1.366481]
[1751490232314,7.864,2594.5,2594.4,0.7569]
[1751490232614,7.864,2594.5,2594.3,4.912]
[1751490232911,7.864,2594.5,2594.3,4.72]
[1751490233215,3.85445575,2594.4,2594.3,4.72]
[1751490233619,3.85445575,2594.4,2594.1,0.25]
[1751490233919,8.056,2594.3,2594.1,0.25]
[1751490234310,0.192,2594.3,2594.1,0.25]
[1751490234509,9.794,2594.2,2594.1,0.25]
[1751490235721,0.192,2594.3,2594.2,0.8009]
[1751490236024,7.863,2594.3,2594.2,0.8009]
[1751490236319,7.863,2594.3,2594.1,0.25]
[1751490238021,12.17606809,2594.2,2594.1,0.25]
[1751490238203,6.05065972,2594.2,2594.1,0.25]
[1751490238891,0.192,2594.2,2594.1,1.0547]
[1751490239222,9.791,2594.2,2594.1,1.0547]
[1751490240944,9.791,2594.2,2594.1,0.25]
[1751490241544,9.983,2594.2,2594.1,0.25]
[1751490247655,0.7761,2594.6,2594.1,0.25]
[1751490247856,1.928,2594.3,2594.1,0.25]
[1751490248066,7.863,2594.2,2594.1,0.25]
[1751490248265,7.863,2594.2,2594.1,1.0092]
[1751490249332,7.862,2594.2,2594.1,1.0092]
[1751490256757,7.862,2594.2,2594.1,0.25]
[1751490257867,7.861,2594.2,2594.1,0.25]
[1751490259263,8.053,2594.2,2594.1,0.25]
[1751490265233,9.98,2594.2,2594.1,1.0163]
[1751490265440,9.788,2594.2,2594.1,1.0163]
[1751490266264,0.192,2594.4,2594.1,1.0163]
[1751490266559,7.86,2594.2,2594.1,1.0163]
[1751490266769,0.192,2594.4,2594.1,1.0163]
[1751490266947,7.859,2594.3,2594.1,1.0163]
[1751490268063,7.859,2594.2,2594.1,1.0163]
[1751490268237,1.926,2594.4,2594.1,2.50544262]
[1751490268441,7.859,2594.3,2594.1,2.50544262]
[1751490269176,7.859,2594.3,2594.1,7.22544262]
[1751490270039,0.192,2594.5,2594.1,7.22544262]
[1751490270239,7.859,2594.4,2594.1,7.22544262]
[1751490271172,0.192,2594.5,2594.2,0.74274426]
[1751490271542,7.858,2594.5,2594.3,0.7663]
[1751490272961,7.858,2594.5,2594.1,4.97]
[1751490273159,0.192,2594.4,2594.1,4.97]
[1751490273335,7.858,2594.3,2594.1,4.97]
[1751490273535,4.04675291,2594.2,2594.1,4.97]
[1751490275137,4.04675291,2594.2,2594.1,0.25]
[1751490277662,5.97275291,2594.2,2594.1,0.25]
[1751490284702,4.04675291,2594.2,2594.1,0.25]
[1751490284906,13.82975291,2594.2,2594.1,0.25]
[1751490286004,24.97334819,2594.2,2594.1,0.25]
[1751490286183,25.89819887,2594.2,2594.1,0.25]
[1751490286380,3.8549015,2594.1,2594.0,0.01]
[1751490286680,19.03743702,2594.1,2594.0,0.01]
[1751490290575,28.81943702,2594.1,2594.0,0.01]
[1751490290776,20.96343702,2594.1,2594.0,0.01]
[1751490290998,25.37955218,2594.1,2594.0,0.01]
[1751490291382,13.6379015,2594.1,2594.0,0.01]
[1751490291589,3.8549015,2594.1,2594.0,0.01]
[1751490291880,13.6379015,2594.1,2594.0,0.01]
[1751490292277,14.3921015,2594.1,2594.0,0.01]
[1751490292598,17.99068723,2594.1,2594.0,0.01]
[1751490295626,27.99068723,2594.1,2594.0,0.01]
[1751490299033,27.99068723,2594.1,2594.0,1e-08]
[1751490299525,27.99068723,2594.1,2593.3,0.2272112]
[1751490299526,3.855496,2593.7,2593.3,0.2272112]
[1751490299839,12.17725718,2593.4,2593.3,0.2272112]
[1751490300129,21.95725718,2593.4,2593.3,0.2272112]
[1751490300336,12.17725718,2593.4,2593.3,0.2272112]
[1751490300494,13.635942,2593.4,2593.3,0.2272112]
[1751490302933,5.779942,2593.4,2593.3,0.2272112]
[1751490303109,13.635942,2593.4,2593.3,0.2272112]
[1751490306721,13.636942,2593.4,2593.3,0.2272112]
[1751490306903,3.855942,2593.4,2593.3,0.2272112]
[1751490307106,13.636942,2593.4,2593.3,0.2272112]
[1751490309328,8.32131518,2593.6,2593.3,0.2272112]
[1751490309539,0.192,2593.4,2593.3,0.9937112]
[1751490309695,8.048,2593.4,2593.3,0.9937112]
[1751490312053,11.903942,2593.4,2593.3,0.9937112]
[1751490312749,20.22525718,2593.4,2593.3,0.2272112]
[1751490315353,21.14996959,2593.4,2593.3,0.2272112]
[1751490316555,23.07396959,2593.4,2593.3,0.2272112]
[1751490317351,14.75265441,2593.4,2593.3,0.2272112]
[1751490317651,1.11671241,2593.4,2593.3,0.2272112]
[1751490317856,9.972,2593.4,2593.3,0.2272112]
[1751490320322,0.192,2593.4,2593.3,0.2272112]
[1751490320556,9.971,2593.4,2593.3,1.0435112]
[1751490322952,0.192,2593.4,2593.3,1.0435112]
[1751490323256,9.971,2593.4,2593.3,1.0435112]
[1751490329160,0.192,2593.4,2593.3,1.0435112]
[1751490329364,9.774,2593.6,2593.4,0.7563]
[1751490329728,1.922,2593.6,2593.4,0.7563]
[1751490330060,9.774,2593.6,2593.4,0.7563]
[1751490330637,9.266,2593.7,2593.4,4.72]
[1751490330963,17.118,2593.7,2593.6,0.7563]
[1751490333239,0.02,2593.9,2593.6,0.7563]
[1751490333441,0.02,2593.9,2593.7,0.192]
[1751490333442,7.871,2593.9,2593.7,0.192]
[1751490333641,7.871,2593.9,2593.8,0.7563]
[1751490333642,0.02,2593.9,2593.8,0.7563]
[1751490333956,0.02,2593.9,2593.8,1.40947781]
[1751490334725,0.02,2593.9,2593.8,15.26482517]
[1751490334929,0.02,2593.9,2593.8,11.40947781]
[1751490335955,0.02,2593.9,2593.8,15.26482517]
[1751490336464,0.02,2593.9,2593.8,11.40947781]
[1751490337361,0.02,2593.9,2593.8,16.12947781]
[1751490339052,0.02,2593.9,2593.8,19.98482517]
[1751490339743,0.02,2593.9,2593.8,20.53482517]
[1751490344954,0.02,2593.9,2593.8,45.47200517]
[1751490345159,0.02,2593.9,2593.8,44.55308417]
[1751490346270,0.02,2593.9,2593.8,44.30209417]
[1751490346672,0.02,2593.9,2593.8,39.89909417]
[1751490346986,0.192,2594.7,2594.1,0.8077]
[1751490347138,1.942,2595.0,2594.4,0.8077]
[1751490347341,1.942,2595.0,2594.6,0.192]
[1751490355084,1.942,2595.0,2594.6,4.04615679]
[1751490355300,1.942,2595.0,2594.7,0.83494301]
[1751490355448,0.02,2595.0,2594.7,0.83494301]
[1751490355652,0.02,2595.0,2594.9,0.192]
[1751490355957,0.02,2595.0,2594.9,0.973]
[1751490356161,0.02,2595.0,2594.9,14.82671305]
[1751490360355,0.02,2595.0,2594.9,23.21871305]
[1751490362091,0.02,2595.2,2595.1,23.48973123]
[1751490362255,0.02,2595.2,2595.1,32.62785205]
[1751490362456,0.02,2595.2,2595.1,32.81985205]
[1751490363283,0.02,2595.2,2595.1,67.53985205]
[1751490364182,0.02,2595.9,2595.8,14.64257691]
[1751490364365,0.02,2595.9,2595.8,19.36257691]
[1751490364567,0.02,2595.9,2595.8,16.9631439]
[1751490364970,0.02,2595.9,2595.8,20.81552081]
[1751490365694,0.7851,2595.9,2595.8,15.9809439]
[1751490365879,0.7851,2595.9,2595.8,4.72]
[1751490366052,0.7851,2595.9,2595.6,0.192]
[1751490366253,0.7651,2595.5,2595.3,4.72]
[1751490366475,0.7651,2595.5,2595.2,4.72]
[1751490368790,0.7651,2595.5,2595.1,0.192]
[1751490369359,0.7851,2595.5,2595.1,0.192]
[1751490369993,0.02,2595.5,2595.1,0.9822]
[1751490370182,0.02,2595.5,2595.2,13.85325737]
[1751490370497,0.02,2595.5,2595.3,0.192]
[1751490373960,0.7651,2595.4,2595.3,0.192]
[1751490379195,0.02,2595.5,2595.3,0.192]
[1751490381692,0.02,2595.4,2595.3,0.192]
[1751490390407,8.34131518,2595.4,2595.3,0.192]
[1751490390605,4.86114346,2595.3,2595.1,0.01]
[1751490390821,4.66914346,2595.3,2595.1,0.01]
[1751490391009,3.85326757,2595.2,2595.1,0.01]
[1751490391206,4.66926757,2595.2,2595.1,0.01]
[1751490391425,14.28568266,2595.2,2595.1,0.01]
[1751490391809,10.43241509,2595.2,2595.1,0.01]
[1751490392014,14.28568266,2595.2,2595.1,0.01]
[1751490392517,10.43241509,2595.2,2595.1,0.01]
[1751490392814,14.28568266,2595.2,2595.1,0.01]
[1751490393984,10.43241509,2595.2,2595.1,0.01]
[1751490397087,8.653,2595.2,2595.1,0.01]
[1751490399006,12.50626757,2595.2,2595.1,0.01]
[1751490399700,8.653,2595.2,2595.1,0.01]
[1751490403091,13.12479431,2595.4,2595.1,0.01]
[1751490403092,0.95044152,2595.4,2595.1,0.01]
[1751490404521,0.02,2595.4,2595.3,0.9964]
[1751490406433,0.02,2595.4,2595.3,1.53737876]
[1751490407444,0.02,2595.4,2595.3,15.94049785]
[1751490408031,0.02,2595.4,2595.3,12.08737876]
[1751490408199,0.02,2595.4,2595.3,2.08737876]
[1751490409117,0.02,2595.4,2595.3,1.5464]
[1751490409324,0.02,2595.4,2595.3,11.5464]
[1751490409632,0.02,2595.4,2595.3,1.5464]
[1751490411935,3.85326757,2595.2,2595.1,0.01]
[1751490412140,22.69938275,2595.2,2595.1,0.01]
[1751490412632,25.35663551,2595.2,2595.1,0.01]
[1751490412834,15.60563551,2595.2,2595.1,0.01]
[1751490413041,25.35663551,2595.2,2595.1,0.01]
[1751490413729,15.60563551,2595.2,2595.1,0.01]
[1751490413925,25.35763551,2595.2,2595.1,0.01]
[1751490415151,14.37906757,2595.2,2595.1,0.01]
[1751490416540,0.7738,2595.2,2595.1,0.01]
[1751490416740,0.9658,2595.2,2595.1,0.01]
[1751490417114,10.7178,2595.2,2595.1,0.01]
[1751490417745,0.9658,2595.2,2595.1,0.01]
[1751490417945,10.7178,2595.2,2595.1,0.01]
[1751490419267,0.9658,2595.2,2595.1,0.01]
[1751490419557,9.944,2595.2,2595.1,0.01]
[1751490421554,7.835,2595.2,2595.1,0.01]
[1751490422229,0.192,2595.3,2595.1,0.01]
[1751490422771,7.835,2595.2,2595.1,0.01]
[1751490425147,0.192,2595.3,2595.1,0.01]
[1751490425351,7.834,2595.2,2595.1,0.01]
[1751490436184,0.212,2595.3,2595.1,0.01]
[1751490436360,0.212,2595.3,2595.1,0.5032]
[1751490436549,7.833,2595.2,2595.1,0.5032]
[1751490441346,7.833,2595.2,2595.1,0.01]
[1751490443376,0.02,2595.3,2595.1,0.01]
[1751490446656,0.02,2595.3,2595.1,4.73]
[1751490450886,0.02,2595.3,2595.2,15.4721]
[1751490451062,0.02,2595.3,2595.2,14.72]
[1751490451265,0.02,2595.3,2595.2,16.194]
[1751490452562,0.02,2595.3,2595.2,4.72]
[1751490452992,7.851,2595.3,2595.2,4.72]
[1751490455499,7.851,2595.3,2595.1,0.01]
[1751490459417,7.85,2595.3,2595.1,0.777]
[1751490459798,7.85,2595.3,2595.1,1.0887]
[1751490459988,7.85,2595.3,2595.1,0.01]
[1751490460184,8.6427,2595.3,2595.1,0.01]
[1751490469334,7.85,2595.3,2595.1,0.01]
[1751490479125,12.99068275,2595.2,2595.1,0.01]
[1751490479748,13.91589693,2595.2,2595.1,0.01]
[1751490480229,16.47980141,2595.2,2595.1,0.01]
[1751490481338,15.55458723,2595.2,2595.1,0.01]
[1751490482063,16.4795515,2595.2,2595.1,0.01]
[1751490483542,0.7874,2595.0,2594.1,0.192]
[1751490483734,0.7874,2595.0,2593.9,0.8237]
[1751490483735,3.85461686,2594.3,2593.9,0.8237]
[1751490483937,8.019,2594.2,2593.9,0.8237]
[1751490484337,11.87375529,2594.2,2593.9,0.8237]
[1751490484535,11.87385879,2594.2,2593.7,0.192]
[1751490484733,8.019,2594.2,2593.7,0.192]
[1751490486039,11.87375536,2594.2,2593.7,0.192]
[1751490486354,13.2448352,2594.2,2593.7,0.192]
[1751490486983,9.39007984,2594.2,2593.7,0.192]
[1751490487146,8.019,2594.2,2593.7,0.192]
[1751490487680,11.87379844,2594.2,2593.7,0.192]
[1751490487889,8.019,2594.2,2593.7,0.192]
[1751490488875,11.873757,2594.2,2593.7,0.192]
[1751490489383,8.019,2594.2,2593.7,0.192]
[1751490489585,11.87377991,2594.2,2593.7,0.192]
[1751490489984,8.019,2594.2,2593.7,0.192]
[1751490490491,11.8737774,2594.2,2593.7,0.192]
[1751490490874,8.019,2594.2,2593.7,0.192]
[1751490492493,11.87375925,2594.2,2593.7,0.192]
[1751490493205,4.6633015,2594.1,2593.7,0.192]
[1751490498304,4.6633015,2594.1,2593.5,4.72]
[1751490498495,4.6633015,2594.1,2593.5,4.912]
[1751490499613,4.6633015,2594.1,2593.4,4.72]
[1751490500112,14.6815015,2594.1,2593.3,0.2272112]
[1751490503984,15.60120501,2594.1,2593.3,0.2272112]
[1751490505282,15.60148208,2594.1,2593.3,0.2272112]
[1751490506625,3.65958058,2594.1,2593.5,0.8287]
[1751490506928,1.913,2594.1,2593.5,0.8287]
[1751490507111,9.742,2594.1,2593.5,0.8287]
[1751490508183,1.913,2594.1,2593.5,0.8287]
[1751490508418,9.741,2594.1,2593.5,0.8287]
[1751490508987,13.5959015,2594.1,2593.5,0.8287]
[1751490509195,16.27522879,2594.1,2593.5,0.8287]
[1751490509610,0.192,2594.2,2593.5,0.8287]
[1751490509814,9.741,2594.1,2593.9,0.7514]
[1751490511737,13.5959015,2594.1,2593.9,0.7514]
[1751490511906,21.91721668,2594.1,2593.6,0.192]
[1751490512106,12.17621668,2594.1,2593.7,0.7514]
[1751490512506,21.91621668,2594.1,2593.7,0.7514]
[1751490516235,24.51251463,2594.1,2593.7,0.7514]
[1751490517349,25.43624708,2594.1,2593.7,0.7514]
[1751490517539,24.51251463,2594.1,2593.7,0.7514]
[1751490517851,13.5949015,2594.1,2593.7,0.7514]
[1751490518057,9.74,2594.1,2593.7,0.7514]
[1751490518757,1.912,2594.1,2593.7,0.7514]
[1751490518967,9.739,2594.1,2593.7,0.7514]
[1751490520557,13.5939015,2594.1,2593.7,0.7514]
[1751490521539,9.739,2594.1,2593.7,0.7514]
[1751490523755,9.739,2594.1,2593.7,5.4714]
[1751490533066,13.5939015,2594.1,2593.7,5.4714]
[1751490535661,9.739,2594.1,2593.7,5.4714]
[1751490535870,13.5939015,2594.1,2593.7,5.4714]
[1751490536370,14.51962711,2594.1,2593.7,5.4714]
[1751490537667,9.739,2594.1,2593.7,5.4714]
[1751490539295,13.5939015,2594.1,2593.7,5.4714]
[1751490540580,9.739,2594.1,2593.7,5.4714]
[1751490541285,13.5939015,2594.1,2593.7,5.4714]